fUST/lending_fUST_20241106
["ID","MTS","AMOUNT","RATE_DAILY","PERIOD"]
[341450278,1730895033846,-500.0,0.00027397,2]
[341450279,1730895033856,-500.0,0.00027397,2]
[341450280,1730895033866,-643.79,0.00027397,2]
[341450281,1730895033875,-500.0,0.00027397,2]
[341450282,1730895033886,-569.11211755,0.00027397,2]
[341450283,1730895033895,-500.0,0.00027397,2]
[341450284,1730895033909,-500.0,0.00027397,2]
[341450285,1730895033919,-500.0,0.00027397,2]
[341450286,1730895033928,-500.0,0.00027397,2]
[341450287,1730895033938,-500.0,0.00027397,2]
[341450288,1730895033947,-500.0,0.00027397,2]
[341450289,1730895033956,-515.75070025,0.00027397,2]
[341450290,1730895033966,-500.0,0.00027397,2]
[341450291,1730895033975,-500.0,0.00027397,2]
[341450292,1730895033987,-7659.74,0.00027397,2]
[341450293,1730895033997,-638.1,0.00027397,2]
[341450294,1730895034007,-4412.92,0.00027397,2]
[341450295,1730895034017,-500.0,0.00027397,2]
[341450296,1730895034027,-500.0,0.00027397,2]
[341450297,1730895034038,-500.0,0.00027397,2]
[341450298,1730895034048,-1023.86,0.00027397,2]
[341450299,1730895034058,-500.0,0.00027397,2]
[341450300,1730895034068,-500.0,0.00027397,2]
[341450301,1730895034078,-500.0,0.00027397,2]
[341450302,1730895034088,-500.0,0.00027397,2]
[341450303,1730895034097,-500.0,0.00027397,2]
[341450304,1730895034107,-504.74556712,0.00027397,2]
[341450305,1730895034117,-500.0,0.00027397,2]
[341450306,1730895034127,-500.0,0.00027397,2]
[341450307,1730895034138,-500.0,0.00027397,2]
[341450308,1730895034149,-500.0,0.00027397,2]
[341450309,1730895034159,-500.0,0.00027397,2]
[341450310,1730895034170,-500.0,0.00027397,2]
[341450311,1730895034179,-500.0,0.00027397,2]
[341450312,1730895034190,-500.0,0.00027397,2]
[341450313,1730895034200,-500.0,0.00027397,2]
[341450314,1730895034210,-500.0,0.00027397,2]
[341450315,1730895034219,-500.0,0.00027397,2]
[341450316,1730895034230,-500.0,0.00027397,2]
[341450317,1730895034240,-500.0,0.00027397,2]
[341450318,1730895034250,-500.0,0.00027397,2]
[341450319,1730895034259,-500.0,0.00027397,2]
[341450320,1730895034268,-500.0,0.00027397,2]
[341450321,1730895034278,-500.0,0.00027397,2]
[341450322,1730895034288,-500.0,0.00027397,2]
[341450323,1730895034297,-500.0,0.00027397,2]
[341450324,1730895034307,-500.0,0.00027397,2]
[341450325,1730895034316,-500.0,0.00027397,2]
[341450326,1730895034326,-500.0,0.00027397,2]
[341450327,1730895034335,-500.0,0.00027397,2]
[341450328,1730895034345,-500.0,0.00027397,2]
[341450329,1730895034354,-500.0,0.00027397,2]
[341450330,1730895034363,-500.0,0.00027397,2]
[341450331,1730895034373,-500.0,0.00027397,2]
[341450332,1730895034383,-264.11674838,0.00027397,2]
[341450333,1730895034392,-1000.77,0.00027397,2]
[341450334,1730895034402,-500.0,0.00027397,2]
[341450335,1730895034411,-500.0,0.00027397,2]
[341450336,1730895034421,-500.0,0.00027397,2]
[341450337,1730895034432,-500.0,0.00027397,2]
[341450338,1730895034441,-500.0,0.00027397,2]
[341450339,1730895034451,-500.0,0.00027397,2]
[341450340,1730895034461,-509.49601674,0.00027397,2]
[341450341,1730895034471,-500.0,0.00027397,2]
[341450342,1730895034481,-500.0,0.00027397,2]
[341450343,1730895034491,-500.0,0.00027397,2]
[341450344,1730895034501,-512.46475607,0.00027397,2]
[341450345,1730895034510,-500.0,0.00027397,2]
[341450346,1730895034520,-476.63040076,0.00027397,2]
[341450364,1730895038285,-500.0,0.00027373,2]
[341450365,1730895038295,-23.36959924,0.00027397,2]
[341450366,1730895038305,-508.84434533,0.00027397,2]
[341450367,1730895038317,-500.0,0.00027397,2]
[341450368,1730895038328,-500.0,0.00027397,2]
[341450369,1730895038339,-500.0,0.00027397,2]
[341450370,1730895038348,-500.0,0.00027397,2]
[341450371,1730895038359,-500.0,0.00027397,2]
[341450372,1730895038369,-500.0,0.00027397,2]
[341450374,1730895038378,-500.0,0.00027397,2]
[341450375,1730895038389,-500.0,0.00027397,2]
[341450376,1730895038399,-500.0,0.00027397,2]
[341450377,1730895038409,-500.0,0.00027397,2]
[341450378,1730895038420,-500.0,0.00027397,2]
[341450379,1730895038429,-918.97,0.00027397,2]
[341450380,1730895038439,-500.0,0.00027397,2]
[341450381,1730895038448,-3164.41605543,0.000274,2]
[341450421,1730895043063,-2323.227243,0.00024332,2]
[341450422,1730895043073,-331.25864673,0.00027397,2]
[341450425,1730895043172,-168.74135327,0.00027397,2]
[341450427,1730895043182,-12344.70000011,0.000274,2]
[341450429,1730895043192,-8323.18190896,0.000275,2]
[341450452,1730895043440,-6429.45104436,0.000275,2]
[341450454,1730895043546,-741.31,0.000275,2]
[341450503,1730895046051,-1549.61140659,0.00026842,2]
[341450504,1730895046105,-773.61583639,0.00026842,2]
[341450505,1730895046117,-1853.97628408,0.000275,2]
[341450506,1730895046128,-500.0,0.00027671,2]
[341450507,1730895046138,-500.0,0.00027671,2]
[341450508,1730895046149,-298.31053786,0.00027671,2]
[341450510,1730895046159,-500.0,0.00027671,2]
[341450512,1730895046170,-500.0,0.00027671,2]
[341450513,1730895046180,-618.27017854,0.00027671,2]
[341450515,1730895046190,-543.91228546,0.00027671,2]
[341450517,1730895046200,-500.0,0.00027671,2]
[341450519,1730895046211,-190.58768615,0.00027671,2]
[341450520,1730895046222,-500.0,0.00027671,2]
[341450521,1730895046232,-314.22347126,0.00027671,2]
[341450522,1730895046243,-741.64,0.00027671,2]
[341450523,1730895046254,-500.0,0.00027671,2]
[341450525,1730895046266,-500.0,0.00027671,2]
[341450526,1730895046276,-500.0,0.00027671,2]
[341450527,1730895046287,-611.42,0.00027671,2]
[341450528,1730895046297,-500.0,0.00027671,2]
[341450529,1730895046307,-500.0,0.00027671,2]
[341450530,1730895046316,-500.0,0.00027671,2]
[341450531,1730895046327,-500.0,0.00027671,2]
[341450532,1730895046337,-1849.76,0.00027671,2]
[341450533,1730895046348,-643.79,0.00027671,2]
[341450534,1730895046358,-158.83318044,0.00027671,2]
[341450535,1730895046367,-528.51177373,0.00027671,2]
[341450536,1730895046378,-500.0,0.00027671,2]
[341450537,1730895046389,-500.0,0.00027671,2]
[341450538,1730895046402,-7659.74,0.00027671,2]
[341450539,1730895046412,-638.1,0.00027671,2]
[341450540,1730895046423,-4412.92,0.00027671,2]
[341450541,1730895046434,-500.0,0.00027671,2]
[341450542,1730895046444,-500.0,0.00027671,2]
[341450543,1730895046454,-1023.86,0.00027671,2]
[341450544,1730895046464,-500.0,0.00027671,2]
[341450545,1730895046475,-500.0,0.00027671,2]
[341450546,1730895046486,-500.0,0.00027671,2]
[341450547,1730895046501,-1000.77,0.00027671,2]
[341450548,1730895046511,-500.0,0.00027671,2]
[341450549,1730895046522,-527.50054657,0.00027671,2]
[341450550,1730895046533,-500.0,0.00027671,2]
[341450551,1730895046547,-470.74121162,0.00027671,2]
[341450552,1730895046557,-500.0,0.00027671,2]
[341450553,1730895046568,-500.0,0.00027671,2]
[341450554,1730895046578,-500.0,0.00027671,2]
[341450555,1730895046588,-500.0,0.00027671,2]
[341450556,1730895046600,-500.0,0.00027671,2]
[341450557,1730895046611,-520.35812302,0.00027671,2]
[341450558,1730895046622,-918.97,0.00027671,2]
[341450559,1730895046632,-500.0,0.00027671,2]
[341450560,1730895046644,-436.23,0.00027671,2]
[341450561,1730895046654,-1000.0,0.00027845,2]
[341450562,1730895046664,-745.34,0.00027935,10]
[341450563,1730895046673,-500.0,0.00027945,2]
[341450564,1730895046682,-151.0,0.00027945,7]
[341450565,1730895046692,-500.0,0.00027945,2]
[341450566,1730895046702,-327.47676784,0.00027945,2]
[341450567,1730895046711,-500.0,0.00027945,2]
[341450568,1730895046721,-741.64,0.00027945,2]
[341450569,1730895046730,-500.0,0.00027945,2]
[341450570,1730895046740,-500.0,0.00027945,2]
[341450571,1730895046756,-186.346444,0.00027945,7]
[341450572,1730895046766,-611.42,0.00027945,2]
[341450573,1730895046776,-151.0,0.00027945,7]
[341450574,1730895046786,-151.0,0.00027945,7]
[341450575,1730895046795,-256.840312,0.00027945,7]
[341450576,1730895046805,-151.0,0.00027945,7]
[341450577,1730895046815,-500.0,0.00027945,2]
[341450578,1730895046824,-151.0,0.00027945,7]
[341450579,1730895046834,-500.0,0.00027945,2]
[341450580,1730895046843,-151.0,0.00027945,7]
[341450581,1730895046853,-151.0,0.00027945,7]
[341450582,1730895046863,-151.0,0.00027945,7]
[341450583,1730895046873,-151.0,0.00027945,7]
[341450584,1730895046883,-151.0,0.00027945,7]
[341450585,1730895046892,-1849.76,0.00027945,2]
[341450586,1730895046902,-643.79,0.00027945,2]
[341450587,1730895046913,-151.0,0.00027945,7]
[341450588,1730895046924,-151.0,0.00027945,7]
[341450589,1730895046935,-151.0,0.00027945,7]
[341450590,1730895046944,-500.0,0.00027945,2]
[341450591,1730895046954,-151.0,0.00027945,7]
[341450592,1730895046964,-151.0,0.00027945,7]
[341450593,1730895046973,-151.0,0.00027945,7]
[341450594,1730895046983,-7659.74,0.00027945,2]
[341450595,1730895046995,-638.1,0.00027945,2]
[341450596,1730895047005,-4412.92,0.00027945,2]
[341450597,1730895047015,-500.0,0.00027945,2]
[341450598,1730895047024,-500.0,0.00027945,2]
[341450599,1730895047035,-1023.86,0.00027945,2]
[341450600,1730895047044,-501.95528505,0.00027945,2]
[341450601,1730895047055,-500.0,0.00027945,2]
[341450602,1730895047189,-500.0,0.00027945,2]
[341450603,1730895047199,-1000.77,0.00027945,2]
[341450604,1730895047209,-500.0,0.00027945,2]
[341450605,1730895047218,-259.014114,0.00027945,7]
[341450606,1730895047227,-259.014114,0.00027945,7]
[341450607,1730895047237,-151.360586,0.00027945,7]
[341450608,1730895047248,-151.0,0.00027945,7]
[341450609,1730895047258,-500.0,0.00027945,2]
[341450610,1730895047267,-151.360586,0.00027945,7]
[341450611,1730895047277,-151.0,0.00027945,7]
[341450612,1730895047287,-151.0,0.00027945,3]
[341450613,1730895047296,-151.0,0.00027945,7]
[341450614,1730895047306,-500.0,0.00027945,2]
[341450615,1730895047315,-151.0,0.00027945,7]
[341450616,1730895047325,-500.0,0.00027945,2]
[341450617,1730895047335,-500.0,0.00027945,2]
[341450618,1730895047345,-500.0,0.00027945,2]
[341450619,1730895047354,-918.97,0.00027945,2]
[341450620,1730895047364,-500.0,0.00027945,2]
[341450621,1730895047373,-153.0,0.00027973,30]
[341450622,1730895047382,-153.0,0.00027973,30]
[341450623,1730895047392,-153.0,0.00027973,30]
[341450624,1730895047401,-153.0,0.00027973,30]
[341450625,1730895047411,-155.7179992,0.00027973,30]
[341450626,1730895047420,-5474.67922602,0.0002799,2]
[341450627,1730895047429,-179.255,0.00028187,19]
[341450628,1730895047439,-151.0,0.00028219,7]
[341450629,1730895047448,-198.426646,0.00028219,7]
[341450630,1730895047458,-500.0,0.00028219,2]
[341450631,1730895047467,-500.0,0.00028219,2]
[341450632,1730895047476,-151.0,0.00028219,7]
[341450633,1730895047487,-151.0,0.00028219,7]
[341450634,1730895047499,-500.0,0.00028219,2]
[341450635,1730895047509,-741.64,0.00028219,2]
[341450636,1730895047518,-500.0,0.00028219,2]
[341450637,1730895047528,-500.0,0.00028219,2]
[341450638,1730895047538,-611.42,0.00028219,2]
[341450639,1730895047548,-500.0,0.00028219,2]
[341450640,1730895047557,-500.0,0.00028219,2]
[341450641,1730895047568,-1849.76,0.00028219,2]
[341450642,1730895047577,-643.79,0.00028219,2]
[341450643,1730895047588,-7659.74,0.00028219,2]
[341450644,1730895047597,-638.1,0.00028219,2]
[341450645,1730895047606,-4412.92,0.00028219,2]
[341450646,1730895047616,-500.0,0.00028219,2]
[341450647,1730895047625,-500.0,0.00028219,2]
[341450648,1730895047635,-1023.86,0.00028219,2]
[341450649,1730895047647,-500.0,0.00028219,2]
[341450650,1730895047656,-500.0,0.00028219,2]
[341450651,1730895047665,-1000.77,0.00028219,2]
[341450652,1730895047676,-500.0,0.00028219,2]
[341450653,1730895047686,-500.0,0.00028219,2]
[341450654,1730895047695,-500.0,0.00028219,2]
[341450655,1730895047705,-500.0,0.00028219,2]
[341450656,1730895047715,-500.0,0.00028219,2]
[341450657,1730895047724,-500.0,0.00028219,2]
[341450658,1730895047733,-918.97,0.00028219,2]
[341450659,1730895047744,-500.0,0.00028219,2]
[341450660,1730895047756,-725.15608139,0.00028373,2]
[341450661,1730895047768,-635.68649334,0.00028493,2]
[341450662,1730895047779,-500.0,0.00028493,2]
[341450663,1730895047789,-500.0,0.00028493,2]
[341450664,1730895047798,-741.64,0.00028493,2]
[341450665,1730895047808,-500.0,0.00028493,2]
[341450666,1730895047818,-500.0,0.00028493,2]
[341450667,1730895047828,-611.42,0.00028493,2]
[341450668,1730895047837,-151.0,0.00028493,7]
[341450669,1730895047847,-500.0,0.00028493,2]
[341450670,1730895047856,-151.0,0.00028493,7]
[341450671,1730895047865,-500.0,0.00028493,2]
[341450672,1730895047875,-151.0,0.00028493,7]
[341450673,1730895047885,-151.0,0.00028493,7]
[341450674,1730895047894,-1849.76,0.00028493,2]
[341450675,1730895047904,-151.0,0.00028493,7]
[341450676,1730895047913,-643.79,0.00028493,2]
[341450677,1730895047923,-151.0,0.00028493,7]
[341450678,1730895047933,-179.182386,0.00028493,7]
[341450679,1730895047942,-151.0,0.00028493,7]
[341450680,1730895047951,-151.0,0.00028493,7]
[341450681,1730895047961,-151.0,0.00028493,7]
[341450682,1730895047971,-7659.74,0.00028493,2]
[341450683,1730895047980,-151.0,0.00028493,7]
[341450684,1730895047990,-638.1,0.00028493,2]
[341450685,1730895048002,-556.16029743,0.00028493,2]
[341450686,1730895048016,-350.78627145,0.00028493,2]
[341450687,1730895048084,1169.27083333,0.0002082,2]
[341450688,1730895048122,169.955929,0.00013973,2]
[341450695,1730895633662,217.9964948,0.00013973,2]
[341450697,1730895669526,1169.27083333,0.0002082,2]
[341450820,1730896232147,-1169.27083333,0.00021627,2]
[341450821,1730896232158,-194.47251314,0.00022255,2]
[341450822,1730896232173,-128.69665353,0.00023807,2]
[341450824,1730896232185,-174.83570147,0.00023807,2]
[341450826,1730896232194,-281.03311693,0.00024492,2]
[341451026,1730896238334,-22.49923807,0.00024492,2]
[341451028,1730896238344,-190.627442,0.00024623,2]
[341451030,1730896238354,-215.82307957,0.00024658,2]
[341451032,1730896238364,-166.666666,0.00024708,2]
[341451034,1730896238373,-157.6272625,0.00024856,2]
[341451036,1730896238384,-98.06262982,0.00024951,2]
[341451045,1730896238459,-1339.53903328,0.00024951,2]
[341451150,1730896243238,-304.81876917,0.00024951,2]
[341451152,1730896243248,-197.16331854,0.00024999,2]
[341451155,1730896243261,-102.83668146,0.00024999,2]
[341451157,1730896243270,-300.0,0.00024999,2]
[341451159,1730896243280,-500.0,0.00024999,2]
[341451161,1730896243289,-500.0,0.00024999,2]
[341451163,1730896243298,-333.79711076,0.00024999,2]
[341451165,1730896243308,-500.0,0.00024999,2]
[341451167,1730896243317,-500.0,0.00024999,2]
[341451169,1730896243326,-610.58596918,0.00024999,2]
[341451171,1730896243337,-500.0,0.00024999,2]
[341451173,1730896243346,-500.0,0.00024999,2]
[341451176,1730896243356,-500.0,0.00024999,2]
[341451177,1730896243365,-496.60986716,0.00024999,2]
[341451178,1730896243375,-314.05989859,0.00024999,2]
[341451179,1730896243384,-281.93476361,0.00024999,2]
[341451180,1730896243394,-500.0,0.00024999,2]
[341451182,1730896243403,-500.0,0.00024999,2]
[341451183,1730896243413,-500.0,0.00024999,2]
[341451186,1730896243423,-335.38383755,0.00024999,2]
[341451188,1730896243436,-500.0,0.00024999,2]
[341451190,1730896243445,-500.0,0.00024999,2]
[341451192,1730896243456,-500.0,0.00024999,2]
[341451194,1730896243465,-500.0,0.00024999,2]
[341451197,1730896243474,-500.0,0.00024999,2]
[341451199,1730896243484,-500.0,0.00024999,2]
[341451201,1730896243494,-500.0,0.00024999,2]
[341451203,1730896243504,-500.0,0.00024999,2]
[341451205,1730896243514,-500.0,0.00024999,2]
[341451207,1730896243523,-500.0,0.00024999,2]
[341451209,1730896243532,-500.0,0.00024999,2]
[341451211,1730896243541,-500.0,0.00024999,2]
[341451213,1730896243550,-500.0,0.00024999,2]
[341451215,1730896243560,-500.0,0.00024999,2]
[341451217,1730896243569,-519.28747465,0.00024999,2]
[341451219,1730896243578,-500.0,0.00024999,2]
[341451221,1730896243587,-500.0,0.00024999,2]
[341451223,1730896243597,-500.0,0.00024999,2]
[341451225,1730896243605,-500.0,0.00024999,2]
[341451227,1730896243614,-500.0,0.00024999,2]
[341451229,1730896243623,-500.0,0.00024999,2]
[341451231,1730896243633,-500.0,0.00024999,2]
[341451233,1730896243642,-500.0,0.00024999,2]
[341451235,1730896243652,-500.0,0.00024999,2]
[341451237,1730896243664,-500.0,0.00024999,2]
[341451239,1730896243675,-500.0,0.00024999,2]
[341451241,1730896243684,-500.0,0.00024999,2]
[341451243,1730896243693,-500.0,0.00024999,2]
[341451245,1730896243702,-500.0,0.00024999,2]
[341451247,1730896243711,-74.75455921,0.00024999,2]
[341451249,1730896243723,-425.24544079,0.00024999,2]
[341451252,1730896243733,-500.0,0.00024999,2]
[341451254,1730896243742,-500.0,0.00024999,2]
[341451255,1730896243751,-258.69202439,0.00024999,2]
[341451258,1730896243763,-241.30797561,0.00024999,2]
[341451260,1730896243772,-163.41984107,0.00025,2]
[341451262,1730896243782,-11312.50296344,0.00025,2]
[341451264,1730896243794,-50248.07643534,0.00025,2]
[341451266,1730896243803,-243.1185039,0.0002505,2]
[341451268,1730896243813,-500.0,0.0002505,2]
[341451270,1730896243822,-603.38528386,0.0002505,2]
[341451272,1730896243831,-8171.815713,0.00025051,2]
[341451274,1730896243841,-906.51,0.0002508,3]
[341451276,1730896243850,-621.11,0.0002508,10]
[341451278,1730896243859,-453.25,0.0002508,3]
[341451280,1730896243869,-6306.77507622,0.0002509,2]
[341451283,1730896243881,-7463.8,0.0002509,2]
[341451285,1730896243892,-1505.44,0.0002509,2]
[341451287,1730896243903,-3302.07897482,0.0002509,2]
[341451298,1730896243995,-22468.69385072,0.0002509,2]
[341451305,1730896244056,-39570.38801546,0.0002509,2]
[341451307,1730896244065,-303.532355,0.00025177,2]
[341451309,1730896244074,-3048.4744046,0.0002527,2]
[341451311,1730896244085,-188.822522,0.00025536,2]
[341451313,1730896244094,-1813.02,0.0002645,3]
[341451315,1730896244103,-906.5,0.0002645,3]
[341451317,1730896244114,-7458.94652043,0.0002649,2]
[341451319,1730896244123,-420.0,0.00027082,2]
[341451321,1730896244133,-1742.42043223,0.00027372,2]
[341451323,1730896244143,-260.70975657,0.00027373,2]
[341451325,1730896244152,-500.0,0.00027397,2]
[341451327,1730896244162,-500.0,0.00027397,2]
[341451329,1730896244174,-500.0,0.00027397,2]
[341451331,1730896244184,-721.9,0.00027397,2]
[341451333,1730896244193,-375.68696986,0.00027397,2]
[341451335,1730896244202,-500.0,0.00027397,2]
[341451337,1730896244212,-500.0,0.00027397,2]
[341451339,1730896244223,-603.67,0.00027397,2]
[341451342,1730896244234,-319.69312372,0.00027397,2]
[341451344,1730896244244,-500.0,0.00027397,2]
[341451346,1730896244253,-500.0,0.00027397,2]
[341451348,1730896244262,-500.0,0.00027397,2]
[341451350,1730896244272,-500.0,0.00027397,2]
[341451352,1730896244281,-1790.82,0.00027397,2]
[341451354,1730896244291,-624.81,0.00027397,2]
[341451356,1730896244301,-620.59,0.00027397,2]
[341451358,1730896244312,-500.0,0.00027397,2]
[341451360,1730896244322,-4780.09,0.00027397,2]
[341451362,1730896244331,-500.0,0.00027397,2]
[341451364,1730896244343,-1014.89331737,0.00027397,2]
[341451577,1730896246787,-597.83,0.0002508,10]
[341451578,1730896246798,-6110.93668263,0.00027397,2]
[341451579,1730896246808,-500.0,0.00027397,2]
[341451580,1730896246818,-500.0,0.00027397,2]
[341451581,1730896246827,-263.84186728,0.00027397,2]
[341451582,1730896246837,-1033.89,0.00027397,2]
[341451583,1730896246846,-945.17,0.00027397,2]
[341451584,1730896246855,-500.0,0.00027397,2]
[341451585,1730896246865,-201.50626268,0.00027397,2]
[341451586,1730896246874,-500.0,0.00027397,2]
[341451587,1730896246883,-500.0,0.00027397,2]
[341451588,1730896246892,-765.81,0.00027397,2]
[341451589,1730896246902,-500.0,0.00027397,2]
[341451590,1730896246911,-500.0,0.00027397,2]
[341451591,1730896246920,-539.90205656,0.00027397,2]
[341451592,1730896246929,-500.0,0.00027397,2]
[341451593,1730896246938,-500.0,0.00027397,2]
[341451594,1730896246948,-151.0,0.00027397,7]
[341451595,1730896246957,-500.0,0.00027397,2]
[341451596,1730896246966,-500.0,0.00027397,2]
[341451597,1730896246976,-500.0,0.00027397,2]
[341451598,1730896246987,-305.79100029,0.00027397,2]
[341451599,1730896246997,-500.0,0.00027397,2]
[341451600,1730896247006,-500.0,0.00027397,2]
[341451601,1730896247017,-500.0,0.00027397,2]
[341451602,1730896247028,-155.15944387,0.00027397,2]
[341451603,1730896247045,-500.0,0.00027397,2]
[341451604,1730896247055,-420.0,0.00027499,2]
[341451605,1730896247065,-500.0,0.00027671,2]
[341451606,1730896247074,-500.0,0.00027671,2]
[341451607,1730896247085,-500.0,0.00027671,2]
[341451608,1730896247095,-721.9,0.00027671,2]
[341451609,1730896247105,-500.0,0.00027671,2]
[341451610,1730896247116,-500.0,0.00027671,2]
[341451611,1730896247126,-603.67,0.00027671,2]
[341451612,1730896247136,-500.0,0.00027671,2]
[341451613,1730896247145,-1790.82,0.00027671,2]
[341451614,1730896247155,-624.81,0.00027671,2]
[341451615,1730896247164,-620.59,0.00027671,2]
[341451616,1730896247174,-500.0,0.00027671,2]
[341451617,1730896247183,-4266.21914581,0.00027671,2]
[341451618,1730896247224,-513.87085419,0.00027671,2]
[341451619,1730896247234,-500.0,0.00027671,2]
[341451620,1730896247244,-6101.75813932,0.00027671,2]
[341451621,1730896247259,-487.1919645,0.00027671,2]
[341451645,1730896281971,1169.27083333,0.0002082,2]
[341451646,1730896313620,166.420263,0.00013973,2]
[341451656,1730896896431,1169.27083333,0.0002082,2]
[341451658,1730897023587,163.475013,0.00013973,2]
[341451659,1730897062698,668.62572795,0.0002,2]
[341451740,1730897432490,-317.5203392,0.00021914,2]
[341451741,1730897432507,-851.75049413,0.00021914,2]
[341451742,1730897432517,-168.629283,0.00022093,2]
[341451743,1730897432527,-580.7766874,0.00022454,2]
[341451744,1730897432537,-278.67282,0.00023291,2]
[341451745,1730897432548,-2420.6388807,0.00023306,2]
[341451746,1730897432559,-160.26922661,0.00023455,2]
[341451747,1730897432568,-160.26922661,0.00023456,2]
[341451748,1730897432578,-300.0,0.00023555,2]
[341451749,1730897432588,-300.0,0.00023555,2]
[341451750,1730897432598,-500.0,0.00023556,2]
[341451751,1730897432607,-179.04038934,0.00023556,2]
[341451752,1730897432617,-500.0,0.00023556,2]
[341451753,1730897432627,-310.79972104,0.00023556,2]
[341451754,1730897432636,-500.0,0.00023556,2]
[341451755,1730897432646,-500.0,0.00023556,2]
[341451756,1730897432655,-500.0,0.00023556,2]
[341451757,1730897432665,-500.0,0.00023556,2]
[341451758,1730897432675,-500.0,0.00023556,2]
[341451759,1730897432685,-500.0,0.00023556,2]
[341451760,1730897432695,-500.0,0.00023556,2]
[341451761,1730897432705,-500.0,0.00023556,2]
[341451762,1730897432714,-500.0,0.00023556,2]
[341451763,1730897432724,-343.83008159,0.00023556,2]
[341451816,1730897440312,-500.0,0.00023555,2]
[341451818,1730897440324,-500.0,0.00023555,2]
[341451820,1730897440334,-500.0,0.00023555,2]
[341451822,1730897440344,-500.0,0.00023555,2]
[341451824,1730897440353,-500.0,0.00023555,2]
[341451826,1730897440363,-500.0,0.00023555,2]
[341451827,1730897440373,-330.43407105,0.00023555,2]
[341451863,1730897444120,-200.09938745,0.00023555,2]
[341451864,1730897444130,-500.0,0.00023555,2]
[341451865,1730897444140,-500.0,0.00023555,2]
[341451866,1730897444150,-376.40749731,0.00023555,2]
[341451867,1730897444159,-500.0,0.00023555,2]
[341451868,1730897444171,-500.0,0.00023555,2]
[341451869,1730897444180,-500.0,0.00023555,2]
[341451870,1730897444189,-500.0,0.00023555,2]
[341451871,1730897444200,-500.0,0.00023555,2]
[341451872,1730897444209,-500.0,0.00023555,2]
[341451874,1730897444219,-500.0,0.00023555,2]
[341451875,1730897444229,-500.0,0.00023555,2]
[341451876,1730897444240,-500.0,0.00023555,2]
[341451877,1730897444250,-500.0,0.00023555,2]
[341451878,1730897444260,-500.0,0.00023555,2]
[341451879,1730897444270,-500.0,0.00023555,2]
[341451880,1730897444280,-500.0,0.00023555,2]
[341451881,1730897444292,-500.0,0.00023555,2]
[341451882,1730897444301,-500.0,0.00023555,2]
[341451883,1730897444312,-500.0,0.00023555,2]
[341451884,1730897444325,-500.0,0.00023555,2]
[341451885,1730897444336,-500.0,0.00023555,2]
[341451886,1730897444347,-500.0,0.00023555,2]
[341451887,1730897444357,-500.0,0.00023555,2]
[341451888,1730897444368,-500.0,0.00023555,2]
[341451889,1730897444378,-500.0,0.00023555,2]
[341451890,1730897444387,-500.0,0.00023555,2]
[341451891,1730897444397,-500.0,0.00023555,2]
[341451892,1730897444407,-589.27262567,0.00023555,2]
[341451893,1730897444420,-500.0,0.00023555,2]
[341451894,1730897444431,-500.0,0.00023555,2]
[341451895,1730897444442,-120.93788666,0.00023555,2]